bitfinex/quotes_SOLUSD_20250903
["timestamp","ask_amount","ask_price","bid_price","bid_amount"]
[1756934716596,0.73,209.61,209.57,2.60264016]
[1756934716787,0.73,209.61,209.57,7.37426633]
[1756934716989,0.73,209.61,209.57,5.46162617]
[1756934717295,0.73,209.61,209.58,1.91254871]
[1756934718502,0.73,209.61,209.58,6.68396822]
[1756934718800,0.06,209.61,209.58,6.68396822]
[1756934718986,0.06,209.61,209.59,0.69]
[1756934719604,0.06,209.61,209.6,1.912183]
[1756934719905,0.06,209.61,209.6,6.68317536]
[1756934720197,0.06,209.61,209.6,7.37317536]
[1756934723887,0.06,209.61,209.6,20.96876937]
[1756934725604,0.06,209.61,209.6,6.68317536]
[1756934726105,0.06,209.61,209.6,7.37317536]
[1756934727006,0.06,209.61,209.6,6.68317536]
[1756934730109,0.06,209.61,209.6,1.912183]
[1756934730301,0.06,209.61,209.6,6.68317536]
[1756934733604,0.06,209.61,209.6,1.912183]
[1756934735905,0.06,209.61,209.6,6.68317536]
[1756934740116,0.73,209.61,209.6,1.912183]
[1756934742520,0.06,209.61,209.6,1.912183]
[1756934743022,0.77,209.61,209.6,1.912183]
[1756934745750,0.06,209.61,209.6,7.36317536]
[1756934748523,0.06,209.61,209.6,6.68317536]
[1756934751035,0.06,209.61,209.6,7.36317536]
[1756934753930,0.06,209.61,209.6,58.13128845]
[1756934754228,0.06,209.61,209.6,7.36317536]
[1756934754419,0.06,209.61,209.6,43.98317536]
[1756934757045,0.06,209.61,209.6,7.36317536]
[1756934757419,0.06,209.61,209.6,43.30317536]
[1756934757820,0.06,209.61,209.6,43.98317536]
[1756934758320,0.06,209.61,209.6,43.30317536]
[1756934758521,0.06,209.61,209.6,6.68317536]
[1756934761744,0.77,209.61,209.6,1.912183]
[1756934769951,0.06,209.61,209.6,1.912183]
[1756934770663,0.06,209.61,209.6,2.592183]
[1756934772954,0.06,209.61,209.6,7.36317536]
[1756934790276,0.06,209.61,209.6,43.94317536]
[1756934791376,0.06,209.61,209.6,43.92317536]
[1756934791562,0.06,209.61,209.6,7.36317536]
[1756934791763,0.06,209.61,209.6,43.92317536]
[1756934792273,0.72,209.61,209.6,1.912183]
[1756934798382,0.06,209.61,209.6,2.582183]
[1756934798585,0.06,209.61,209.6,1.912183]
[1756934804565,0.75,209.61,209.6,1.912183]
[1756934805188,0.06,209.61,209.6,1.912183]
[1756934805380,0.75,209.61,209.6,1.912183]
[1756934805695,0.06,209.61,209.6,1.912183]
[1756934806687,0.06,209.61,209.6,2.582183]
[1756934807785,0.06,209.61,209.6,1.912183]
[1756934807994,0.06,209.61,209.6,6.68317536]
[1756934808180,0.06,209.61,209.6,7.35317536]
[1756934811375,0.06,209.61,209.6,2.582183]
[1756934811570,0.06,209.61,209.6,1.912183]
[1756934811791,0.06,209.61,209.6,2.582183]
[1756934812182,0.06,209.61,209.6,7.35317536]
[1756934814391,0.06,209.61,209.6,6.68317536]
[1756934814791,0.06,209.61,209.6,7.35317536]
[1756934816109,0.06,209.61,209.6,2.582183]
[1756934816301,0.75,209.61,209.6,1.912183]
[1756934826918,0.06,209.61,209.6,1.912183]
[1756934829826,0.06,209.61,209.6,2.582183]
[1756934830012,0.06,209.61,209.6,1.912183]
[1756934836625,0.75,209.61,209.6,1.912183]
[1756934838829,0.06,209.61,209.6,1.912183]
[1756934847416,0.06,209.61,209.6,2.602183]
[1756934850546,0.06,209.61,209.6,1.912183]
[1756934851938,0.06,209.61,209.6,2.602183]
[1756934859946,0.06,209.61,209.6,1.912183]
[1756934860729,0.06,209.61,209.6,2.602183]
[1756934863155,0.06,209.61,209.6,1.912183]
[1756934865875,0.76,209.61,209.6,1.912183]
[1756934866152,0.06,209.61,209.6,1.912183]
[1756934866361,0.06,209.61,209.6,2.632183]
[1756934881156,0.76,209.61,209.6,1.912183]
[1756934884573,5.53076475,209.61,209.6,1.912183]
[1756934884874,0.06,209.61,209.6,1.912183]
[1756934908197,0.06,209.61,209.6,2.612183]
[1756934911869,0.06,209.61,209.6,1.912183]
[1756934916584,0.34432314,209.61,209.6,1.912183]
[1756934917899,5.11508789,209.61,209.6,1.912183]
[1756934920683,5.82508789,209.61,209.6,1.912183]
[1756934921000,5.11508789,209.61,209.6,1.912183]
[1756934921894,5.81508789,209.61,209.59,0.03]
[1756934922100,5.11508789,209.61,209.59,0.03]
[1756934922396,0.7,209.6,209.59,0.03]
[1756934923798,5.7553155,209.6,209.59,0.03]
[1756934926794,7.66823007,209.6,209.59,0.03]
[1756934926991,5.7553155,209.6,209.59,0.03]
[1756934929402,0.98432314,209.6,209.59,0.03]
[1756934929585,0.28432314,209.6,209.59,0.03]
[1756934930183,5.0553155,209.6,209.59,0.03]
[1756934942934,5.7553155,209.6,209.59,0.03]
[1756934946425,5.0553155,209.6,209.59,0.03]
[1756934954743,5.1153155,209.6,209.59,0.03]
[1756934955233,0.34432314,209.6,209.59,0.03]
[1756934955538,0.34432314,209.6,209.59,0.72]
[1756934955842,36.84432314,209.6,209.59,0.72]
[1756934956139,36.84432314,209.6,209.59,3.37291456]
[1756934964424,36.84432314,209.6,209.59,2.68291456]
[1756934964648,36.84432314,209.6,209.59,3.37291456]
[1756934964939,0.06,209.6,209.59,3.37291456]
[1756934967040,0.027809,209.6,209.59,3.37291456]
[1756934974655,0.697809,209.6,209.59,2.68291456]
[1756934975460,0.027809,209.6,209.59,2.68291456]
[1756934977153,0.697809,209.6,209.59,2.68291456]
[1756934977554,0.027809,209.6,209.59,3.37291456]
[1756934978958,0.027809,209.6,209.59,2.68291456]
[1756934988468,4.72817349,209.6,209.59,2.68291456]
[1756934989240,5.71249663,209.6,209.59,2.68291456]
[1756934989451,5.71249663,209.6,209.59,0.03]
[1756934989858,10.48348899,209.6,209.59,0.03]
[1756934990768,5.7831245,209.6,209.59,0.03]
[1756934990968,10.48348899,209.6,209.59,0.03]
[1756934997274,9.78348899,209.6,209.59,0.03]
[1756935003677,36.507809,209.6,209.59,0.72]
[1756935003976,4.72817349,209.6,209.59,3.43291456]
[1756935007382,4.72817349,209.6,209.59,2.74291456]
[1756935007589,4.72817349,209.6,209.59,3.43291456]
[1756935009881,9.49916585,209.6,209.59,3.43291456]
[1756935010271,10.48348899,209.6,209.59,2.74291456]
[1756935011369,10.48348899,209.6,209.59,0.03]
[1756935012765,24.079083,209.6,209.59,0.03]
[1756935012966,19.37871851,209.6,209.59,0.03]
[1756935013171,24.079083,209.6,209.59,0.03]
[1756935013681,10.48348899,209.6,209.59,0.03]
[1756935014067,24.079083,209.6,209.59,0.03]
[1756935014875,26.88199756,209.6,209.59,0.03]
[1756935020093,24.079083,209.6,209.59,0.03]
[1756935020780,23.379083,209.6,209.59,0.03]
[1756935021381,23.379083,209.6,209.59,0.69]
[1756935022091,23.379083,209.6,209.59,0.03]
[1756935024691,5.0831245,209.6,209.59,0.69]
[1756935024893,36.77213214,209.6,209.59,0.69]
[1756935025098,36.77213214,209.6,209.59,3.52291456]
[1756935028883,41.47249663,209.6,209.59,3.52291456]
[1756935032897,5.01249663,209.6,209.59,3.52291456]
[1756935033100,41.47249663,209.6,209.59,3.52291456]
[1756935034701,41.47249663,209.6,209.59,2.86291456]
[1756935037809,42.16249663,209.6,209.59,2.86291456]
[1756935039314,46.93348899,209.6,209.59,2.86291456]
[1756935039806,46.93348899,209.6,209.59,0.03]
[1756935040304,46.93348899,209.6,209.59,0.69]
[1756935040305,36.77213214,209.6,209.59,0.69]
[1756935041411,36.77213214,209.6,209.59,3.55291456]
[1756935044609,36.77213214,209.6,209.59,2.89291456]
[1756935060233,36.77213214,209.6,209.59,3.60291456]
[1756935063222,36.77213214,209.6,209.59,2.89291456]
[1756935072442,45.24118949,209.6,209.59,2.89291456]
[1756935074545,45.24118949,209.6,209.59,0.03]
[1756935077341,58.8367835,209.6,209.59,0.03]
[1756935077748,61.75969806,209.6,209.59,0.03]
[1756935078633,65.76858137,209.6,209.59,0.03]
[1756935081127,13.59559401,209.55,209.54,0.03]
[1756935081353,53.32798214,209.55,209.54,0.03]
[1756935081660,54.01798214,209.55,209.54,0.03]
[1756935082156,58.79011289,209.55,209.54,0.03]
[1756935086661,60.70366804,209.55,209.54,0.03]
[1756935087444,58.79011289,209.55,209.54,0.03]
[1756935089279,60.70394271,209.55,209.54,0.03]
[1756935090351,65.49326687,209.55,209.54,0.03]
[1756935098268,62.88943705,209.55,209.54,0.03]
[1756935098448,63.57943705,209.55,209.54,0.03]
[1756935099068,65.49326686,209.55,209.54,0.03]
[1756935101680,64.80326686,209.55,209.54,0.03]
[1756935101849,65.48326686,209.55,209.54,0.03]
[1756935102754,39.59559401,209.53,209.52,0.03]
[1756935102954,79.34798214,209.53,209.52,0.03]
[1756935103264,80.02798214,209.53,209.52,0.03]
[1756935103463,82.95984391,209.53,209.52,0.03]
[1756935103665,87.73243017,209.53,209.52,0.03]
[1756935107073,88.41243017,209.53,209.52,0.03]
[1756935109578,87.73243017,209.53,209.52,0.03]
[1756935110077,88.41243017,209.53,209.52,0.03]
[1756935114366,87.73243017,209.53,209.52,0.03]
[1756935114769,88.41243017,209.53,209.52,0.03]
[1756935116187,87.73243017,209.53,209.52,0.03]
[1756935118276,88.41243017,209.53,209.52,0.03]
[1756935118783,87.73243017,209.53,209.52,0.03]
[1756935120669,88.41243017,209.53,209.52,0.03]
[1756935122686,93.11834396,209.53,209.52,0.03]
[1756935123466,93.17834396,209.53,209.52,0.03]
[1756935125668,52.01243017,209.53,209.52,0.03]
[1756935125863,88.47243017,209.53,209.52,0.03]
[1756935127791,93.17834396,209.53,209.52,0.03]
[1756935129497,93.17834396,209.53,209.49,1e-08]
[1756935129689,49.35910062,209.5,209.49,1e-08]
[1756935129984,85.81910062,209.5,209.49,1e-08]
[1756935130188,86.49910062,209.5,209.49,1e-08]
[1756935130495,91.96998275,209.5,209.49,1e-08]
[1756935130801,91.28998275,209.5,209.49,1e-08]
[1756935131370,87.73348,209.5,209.49,1e-08]
[1756935132388,88.44348,209.5,209.49,1e-08]
[1756935140696,88.44348,209.5,209.46,0.03]
[1756935140697,39.87991715,209.47,209.46,0.03]
[1756935140903,81.04583094,209.47,209.46,0.03]
[1756935141280,83.67039358,209.47,209.46,0.03]
[1756935141781,88.44434689,209.47,209.46,0.03]
[1756935141981,87.73434689,209.47,209.46,0.03]
[1756935144210,83.0284331,209.47,209.46,0.03]
[1756935144499,87.73434689,209.47,209.46,0.03]
[1756935145100,88.44434689,209.47,209.46,0.03]
[1756935145403,87.73434689,209.47,209.46,0.03]
[1756935148404,13.87991715,209.46,209.44,0.03]
[1756935148600,55.04583094,209.45,209.44,0.03]
[1756935148986,56.96057688,209.45,209.44,0.03]
[1756935150506,61.73498604,209.45,209.44,0.03]
[1756935151714,62.44498604,209.45,209.44,0.03]
[1756935153205,39.59559401,209.43,209.42,0.03]
[1756935153507,81.04583094,209.43,209.42,0.03]
[1756935153913,87.73571699,209.43,209.42,0.03]
[1756935154092,88.44571699,209.43,209.42,0.03]
[1756935154503,83.0298032,209.43,209.42,0.68]
[1756935154811,83.0298032,209.43,209.42,0.03]
[1756935154812,87.73571699,209.43,209.42,0.03]
[1756935155588,88.44571699,209.43,209.42,0.03]
[1756935156007,87.73571699,209.43,209.42,0.03]
[1756935156911,83.0298032,209.43,209.42,0.03]
[1756935157227,13.59559401,209.38,209.34,0.65]
[1756935157387,44.58583094,209.35,209.34,0.65]
[1756935157710,81.14583094,209.35,209.34,0.65]
[1756935158311,28.24145209,209.35,209.34,0.65]
[1756935158486,64.80145209,209.35,209.34,0.65]
[1756935159002,59.92252069,209.35,209.34,0.65]
[1756935159788,13.87991715,209.34,209.32,0.65]
[1756935160120,71.86424507,209.35,209.25,0.1]
[1756935160121,41.55023693,209.33,209.27,4.70591379]
[1756935160326,4.77783086,209.3,209.27,4.70591379]
[1756935160618,36.56,209.29,209.28,0.65]
[1756935160790,36.84432314,209.29,209.28,0.65]
[1756935165122,0.28432314,209.28,209.25,0.1]
[1756935165305,41.55023693,209.27,209.26,0.71]
[1756935165508,39.86200718,209.27,209.26,0.71]
[1756935166013,39.86200718,209.27,209.25,0.1]
[1756935166014,0.28432314,209.26,209.25,0.1]
[1756935166213,0.28432314,209.26,209.25,0.81]
[1756935168205,8.08075132,209.26,209.25,0.81]
[1756935168408,3.30200718,209.26,209.25,0.81]
[1756935169330,0.28432314,209.26,209.25,0.81]
[1756935170610,8.08075132,209.26,209.25,0.1]
[1756935170840,5.06306728,209.26,209.25,0.1]
[1756935171141,8.08075132,209.26,209.25,0.1]
[1756935172341,5.06306728,209.26,209.25,0.1]
[1756935172529,41.64306728,209.26,209.25,0.81]
[1756935173429,41.64306728,209.26,209.25,0.1]
[1756935173815,44.66075132,209.26,209.25,0.1]
[1756935176533,42.35306728,209.26,209.25,0.1]
[1756935176827,45.37075132,209.26,209.25,0.1]
[1756935179944,44.66075132,209.26,209.25,0.1]
[1756935183724,40.00200718,209.26,209.25,0.1]
[1756935184037,44.78075132,209.26,209.25,0.1]
[1756935184241,41.74306728,209.26,209.25,0.1]
[1756935184740,5.06306728,209.26,209.25,0.1]
[1756935184914,41.74306728,209.26,209.25,0.1]
[1756935185113,37.39,209.26,209.25,0.1]
[1756935185347,36.68,209.26,209.25,0.1]
[1756935186145,19.36843534,209.27,209.25,0.1]
[1756935186446,36.68,209.26,209.25,0.1]
[1756935187426,41.45874414,209.26,209.25,0.1]
[1756935188047,36.68,209.26,209.25,0.1]
[1756935188230,37.39,209.26,209.25,0.1]
[1756935188625,36.68,209.26,209.25,0.1]
[1756935189241,56.04866129,209.26,209.25,0.1]
[1756935189453,19.36866129,209.26,209.25,0.1]
[1756935189740,56.04866129,209.26,209.25,0.1]
[1756935193157,19.36866129,209.26,209.25,0.1]
[1756935193451,59.06634533,209.26,209.25,0.1]
[1756935194631,60.9827425,209.26,209.25,0.1]
[1756935194938,24.3027425,209.26,209.25,0.1]
[1756935195149,60.9627425,209.26,209.25,0.1]
[1756935195327,24.3027425,209.26,209.25,0.1]
[1756935195524,60.9627425,209.26,209.25,0.1]
[1756935196055,24.3027425,209.26,209.25,0.1]
[1756935196238,60.9627425,209.26,209.25,0.1]
[1756935199775,24.3027425,209.26,209.25,0.1]
[1756935199935,60.9627425,209.26,209.25,0.1]
[1756935207252,57.94505846,209.26,209.25,0.1]
[1756935207446,60.9627425,209.26,209.25,0.1]
[1756935207641,57.94505846,209.26,209.25,0.1]
[1756935207856,60.9627425,209.26,209.25,0.1]
[1756935210967,64.51123829,209.26,209.25,0.1]
[1756935211359,64.49123829,209.26,209.25,0.1]
[1756935212077,64.49114259,209.26,209.25,0.1]
[1756935214988,24.12345855,209.26,209.25,0.1]
[1756935215150,24.12345855,209.26,209.25,0.75]
[1756935215151,54.99433815,209.26,209.25,0.75]
[1756935215352,21.67634533,209.26,209.25,0.75]
[1756935215585,58.29634533,209.26,209.25,0.75]
[1756935215886,58.01202219,209.26,209.25,0.75]
[1756935216191,44.70075132,209.26,209.25,0.75]
[1756935219289,8.08075132,209.26,209.25,0.75]
[1756935219460,44.70075132,209.26,209.25,0.75]
[1756935220982,44.70075132,209.26,209.25,0.1]
[1756935221482,41.66306728,209.26,209.25,0.1]
[1756935221669,36.88432314,209.26,209.25,0.75]
[1756935222075,0.28432314,209.26,209.25,0.75]
[1756935222276,36.88432314,209.26,209.25,0.75]
[1756935225784,41.66306728,209.26,209.25,0.75]
[1756935226089,41.66306728,209.26,209.25,0.1]
[1756935227788,41.66306728,209.26,209.25,0.81]
[1756935227991,41.64306728,209.26,209.25,0.81]
[1756935229379,41.64306728,209.26,209.25,0.1]
[1756935237067,47.02843124,209.26,209.25,0.1]
[1756935237687,46.35843124,209.26,209.25,0.1]
[1756935238287,41.64306728,209.26,209.25,0.1]
[1756935238978,46.35843124,209.26,209.25,0.1]
[1756935241375,47.02843124,209.26,209.25,0.1]
[1756935242377,42.31306728,209.26,209.25,0.1]
[1756935242576,47.02843124,209.26,209.25,0.1]
[1756935245602,42.31306728,209.26,209.25,0.1]
[1756935245895,47.02843124,209.26,209.25,0.1]
[1756935246096,42.31306728,209.26,209.25,0.1]
[1756935246281,47.02843124,209.26,209.25,0.1]
[1756935254505,42.31306728,209.26,209.25,0.1]
[1756935258184,47.02843124,209.26,209.25,0.1]
[1756935259207,50.58973215,209.26,209.25,0.1]
[1756935262410,64.18532616,209.26,209.25,1e-08]
[1756935263015,66.13153972,209.26,209.25,1e-08]
[1756935263306,69.6916225,209.26,209.25,1e-08]
[1756935267113,64.97625854,209.26,209.25,1e-08]
[1756935267303,69.6916225,209.26,209.25,1e-08]
[1756935277134,69.7516225,209.26,209.25,1e-08]
[1756935280220,69.7456288,209.26,209.25,1e-08]
[1756935286541,72.94509392,209.26,209.25,1e-08]
[1756935287541,71.24952849,209.26,209.25,1e-08]
[1756935299354,70.57952849,209.26,209.25,1e-08]
[1756935300356,67.55972996,209.26,209.25,1e-08]
[1756935300654,70.57952849,209.26,209.25,1e-08]
[1756935302554,67.01944571,209.26,209.25,1e-08]
[1756935305026,67.07944571,209.26,209.25,1e-08]
[1756935306732,93.07944571,209.26,209.25,1e-08]
[1756935310657,93.08555226,209.26,209.25,1e-08]
[1756935311355,93.80555226,209.26,209.25,1e-08]
[1756935311554,91.1193387,209.26,209.25,0.72000001]
[1756935311761,87.56403153,209.26,209.25,0.72000001]
[1756935312452,84.35845982,209.26,209.25,0.72000001]
[1756935312650,30.83874414,209.26,209.25,0.72000001]
[1756935312949,44.47854267,209.26,209.25,0.72000001]
[1756935313154,44.76286581,209.26,209.25,0.72000001]
[1756935313350,41.74306728,209.26,209.25,0.72000001]
[1756935314138,44.76286581,209.26,209.25,0.72000001]
[1756935315858,41.74306728,209.26,209.25,0.72000001]
[1756935319555,36.96432314,209.26,209.25,0.72000001]
[1756935323268,36.96432314,209.26,209.25,1e-08]
[1756935328562,36.96432314,209.26,209.25,3.72979854]
[1756935328772,36.96432314,209.26,209.25,1e-08]
[1756935331252,36.96432314,209.26,209.25,3.72979855]
[1756935333076,36.96432314,209.26,209.25,1e-08]
[1756935334164,45.47286581,209.26,209.25,1e-08]
[1756935338983,42.45306728,209.26,209.25,1e-08]
[1756935339377,45.47286581,209.26,209.25,1e-08]
[1756935339958,41.74306728,209.26,209.25,1e-08]
[1756935340159,45.47286581,209.26,209.25,1e-08]
[1756935343157,42.45306728,209.26,209.25,1e-08]
[1756935352471,0.06,209.26,209.25,4.39979856]
[1756935362008,0.06,209.26,209.25,9.11566861]
[1756935366803,0.06,209.26,209.25,3.72979856]
[1756935368891,0.73,209.26,209.25,3.72979856]
[1756935369389,0.06,209.26,209.25,3.72979856]
[1756935376414,0.72,209.26,209.25,3.72979856]
[1756935378319,5.49874414,209.26,209.25,3.72979856]
[1756935378608,5.78306728,209.26,209.25,1e-08]
[1756935380606,5.78306728,209.26,209.25,5.40587006]
[1756935392115,10.49893733,209.26,209.25,5.40587006]
[1756935392320,10.49893733,209.26,209.25,1e-08]
[1756935398932,5.78306728,209.26,209.25,1e-08]
[1756935399108,10.49893733,209.26,209.25,1e-08]
[1756935406226,5.78306728,209.26,209.25,1e-08]
[1756935406530,10.49893733,209.26,209.25,1e-08]
[1756935406728,5.78306728,209.26,209.25,1e-08]
[1756935406909,10.49893733,209.26,209.25,1e-08]
[1756935408726,5.12306728,209.26,209.25,1e-08]
[1756935413731,5.79306728,209.26,209.25,1e-08]
[1756935416722,8.81133796,209.26,209.25,1e-08]
[1756935447237,22.40693197,209.26,209.25,1e-08]
[1756935448359,26.41093181,209.26,209.25,1e-08]
[1756935448561,28.32723717,209.26,209.25,1e-08]
[1756935450459,24.32323733,209.26,209.25,1e-08]
[1756935465271,21.30496665,209.26,209.25,1e-08]
[1756935466857,24.51090568,209.26,209.25,1e-08]
[1756935467044,39.87991715,209.23,209.22,0.03]
[1756935467244,79.60585618,209.23,209.22,0.03]
[1756935467464,83.32412686,209.23,209.22,0.03]
[1756935467647,85.24089136,209.23,209.22,0.03]
[1756935468246,90.02032069,209.23,209.22,0.03]
[1756935469470,91.72170811,209.23,209.22,0.03]
[1756935470572,91.71940943,209.23,209.22,0.03]
[1756935473180,13.59559401,209.18,209.17,0.72]
[1756935473354,13.59559401,209.18,209.04,0.1]
[1756935473355,0.28432314,209.17,209.16,0.72]
[1756935474381,5.06512344,209.17,209.16,0.72]
[1756935474866,9.78478154,209.17,209.16,0.72]
[1756935475257,9.78478154,209.17,209.14,2.63694822]
[1756935475458,9.78523871,209.15,209.14,1.91694822]
[1756935475964,9.78523871,209.15,209.14,2.63694822]
[1756935476156,23.38083272,209.15,209.14,1.91694822]
[1756935476377,13.87991715,209.14,209.05,4.7196581]
[1756935476697,13.87991715,209.14,209.09,0.72]
[1756935476698,0.28432314,209.1,209.09,0.72]
[1756935477569,9.786382,209.1,209.09,0.72]
[1756935478184,9.786382,209.1,209.04,4.8196581]
[1756935478185,26.28432314,209.08,209.07,0.72]
[1756935478388,0.28432314,209.08,209.07,0.72]
[1756935478861,5.00398124,209.08,209.07,0.72]
[1756935479885,9.78683947,209.08,209.07,0.72]
[1756935480281,4.8196581,209.09,209.07,0.72]
[1756935480491,36.68,209.09,209.07,0.72]
[1756935480670,0.28432314,209.09,209.07,2.63749958]
[1756935481003,0.14216157,209.15,209.08,0.72]
[1756935481165,0.14216157,209.1,209.08,3.35749958]
[1756935481365,41.56181967,209.1,209.09,0.72]
[1756935481675,41.70398124,209.1,209.09,0.72]
[1756935482466,36.98432314,209.1,209.09,0.72]
[1756935482666,41.70398124,209.1,209.09,0.72]
[1756935484474,41.70398124,209.1,209.08,0.72]
[1756935485295,36.7,209.1,209.09,0.72]
[1756935485484,41.4196581,209.1,209.09,0.72]
[1756935486078,41.4196581,209.1,209.07,3.35749958]
[1756935486391,4.7196581,209.09,209.08,0.72]
[1756935487994,4.7196581,209.09,209.07,2.63749958]
[1756935488199,4.7196581,209.08,209.06,0.75]
[1756935488696,4.7196581,209.08,209.06,2.66749958]
[1756935488907,4.7196581,209.08,209.06,3.38749958]
[1756935489099,42.183087,209.07,209.06,2.66749958]
[1756935489287,46.9027451,209.07,209.06,2.66749958]
[1756935489796,46.9027451,209.07,209.06,0.03]
[1756935492096,72.9027451,209.07,209.06,0.03]
[1756935492298,26.0,209.05,209.04,0.1]
[1756935492475,81.51957525,209.05,209.04,0.1]
[1756935492782,26.7,209.05,209.04,0.1]
[1756935492977,67.6796581,209.05,209.04,0.1]
[1756935493172,72.4632027,209.05,209.04,0.1]
[1756935493380,73.1632027,209.05,209.04,0.1]
[1756935494777,73.2032027,209.05,209.04,0.1]
[1756935495173,86.79879671,209.05,209.04,0.1]
[1756935498188,4.7835446,209.05,209.04,0.1]
[1756935498406,46.4832027,209.05,209.04,0.1]
[1756935498921,47.1832027,209.05,209.04,0.1]
[1756935512000,51.9028608,209.05,209.04,0.1]
[1756935512195,65.49845481,209.05,209.04,0.1]
[1756935513021,26.0,209.02,209.01,0.1]
[1756935513220,67.6596581,209.02,209.01,0.78]
[1756935513427,67.6596581,209.02,209.01,0.1]
[1756935514314,72.44388927,209.02,209.01,0.1]
[1756935514522,72.44388927,209.02,208.99,0.31]
[1756935514702,4.7196581,209.0,208.99,0.31]
[1756935515024,41.6796581,209.0,208.99,0.31]
[1756935515426,46.46435362,209.0,208.97,1.91823523]
[1756935515608,4.7196581,208.98,208.9,4.7196581]
[1756935515805,41.6596581,208.97,208.93,14.38952442]
[1756935516004,36.94,208.97,208.93,14.38952442]
[1756935516628,36.94,208.97,208.94,0.58]
[1756935516929,4.7196581,208.95,208.83,0.1]
[1756935517107,10.20517726,208.97,208.88,4.7196581]
[1756935517301,5.48551916,208.97,208.89,19.68918252]
[1756935517505,37.1,208.96,208.9,0.58]
[1756935517715,41.8196581,208.96,208.9,0.58]
[1756935517926,41.8196581,208.96,208.9,14.97021465]
[1756935518126,4.78583393,208.95,208.91,0.58]
[1756935518424,37.1,208.96,208.91,0.58]
[1756935518626,37.1,208.96,208.92,14.38883427]
[1756935518922,37.1,208.96,208.93,0.58]
[1756935519316,37.1,208.96,208.94,0.58]
[1756935519516,41.88563764,208.96,208.94,0.58]
[1756935520932,41.94563764,208.96,208.94,0.58]
[1756935521633,41.94563764,208.96,208.93,0.58]
[1756935523525,46.66529574,208.96,208.93,0.58]
[1756935525133,46.66529574,208.96,208.92,14.38883427]
[1756935525134,46.66529574,208.96,208.92,14.96883427]
[1756935525318,5.4096581,208.95,208.9,0.58]
[1756935525508,5.4096581,208.95,208.91,14.96883427]
[1756935525922,4.7196581,208.95,208.91,14.96883427]
[1756935526321,4.7196581,208.94,208.91,14.96883427]
[1756935526618,10.1955951,208.95,208.91,14.96883427]
[1756935529637,10.1955951,208.95,208.91,14.38883427]
[1756935529814,4.785937,208.95,208.91,14.38883427]
[1756935530013,5.475937,208.95,208.91,14.38883427]
[1756935530422,5.475937,208.95,208.91,14.96883427]
[1756935530937,0.69,208.94,208.91,14.38883427]
[1756935531716,5.47610382,208.94,208.91,14.38883427]
[1756935532732,4.78610382,208.94,208.91,14.38883427]
[1756935533425,4.78583393,208.95,208.91,14.96883427]
[1756935533626,0.69,208.94,208.89,0.58]
[1756935534028,0.69,208.94,208.9,14.39090495]
[1756935534725,4.78583393,208.95,208.91,0.03]
[1756935534930,0.69,208.94,208.91,0.03]
[1756935535330,5.47629205,208.93,208.91,0.03]
[1756935535840,0.69,208.92,208.91,0.03]
[1756935536444,5.47629205,208.93,208.91,0.03]
[1756935536742,0.69,208.92,208.91,0.03]
[1756935537148,5.47629205,208.93,208.91,0.03]
[1756935537851,26.69,208.92,208.91,0.03]
[1756935538032,3.4648089,208.92,208.91,0.03]
[1756935538726,2.7748089,208.97,208.91,3.66913204]
[1756935538933,2.7748089,208.97,208.92,0.58]
[1756935538934,3.4648089,208.97,208.92,0.58]
[1756935539140,13.14496981,208.98,208.92,0.58]
[1756935539445,2.7748089,208.97,208.93,0.28432314]
[1756935539647,0.69,208.97,208.93,0.86432314]
[1756935539842,7.56021027,208.97,208.91,4.81660429]
[1756935540142,0.69,208.96,208.92,14.38952443]